Cogmind - Beta 15 @@@ ROGUE MODE // 2025.06.22 @ 00:22:37 Player: Dendrocnid Result: Destroyed by X-62 Marksman with Pulse Rifle Performance ------------- Evolutions (2) 1000 Regions Visited (3) 600 Robots Destroyed (41) 205 Value Destroyed (1082) 1082 Prototype IDs (2) 40 Alien Tech Used (0) 0 Bonus (0) 0 TOTAL SCORE: 2927 Bonus ------- None Cogmind --------- Core Integrity 0/550 Matter 260/300 Energy 99/100 System Corruption 0% Temperature Cool (9) Movement Treading (170) Location -8/Materials Parts ------- > --- POWER (1) -------- (None) > --- PROPULSION (2) --- Armored Treads > --- UTILITY (4) ------ Heat Sink > --- WEAPON (4) ------- Hammer > --- INVENTORY (5) ---- Improved Ion Engine Medium Storage Unit Datajack Peak State ------------ > --- POWER ------------ Deuterium Engine > --- PROPULSION ------- Aluminum Leg Aluminum Leg > --- UTILITY ---------- Heat Sink Heat Sink Medium Storage Unit Improved Targeting Computer > --- WEAPON ----------- Beam Rifle Beam Rifle Spread Laser Spread Laser > --- INVENTORY -------- Ion Engine Improved Ion Engine Medium Storage Unit Weight Redist. System Particle Charger Hacking Suite Grenade Launcher Datajack Hammer [Rating: 19] Favorites ----------- Power Light Ion Engine Engine Light Ion Engine Power Core Light Nuclear Core Propulsion Aluminum Leg Treads Armored Treads Leg Aluminum Leg Wheel Wheel Utility Heat Sink Device Heat Sink Storage Medium Storage Unit Processor Improved Targeting Computer Protection Hardened Light Armor Plating Weapon Spread Laser Energy Gun Spread Laser Ballistic Gun Light Assault Rifle Ballistic Cannon Light Cannon Launcher Grenade Launcher Impact Weapon Hammer Build | -11 -10 -9 -8 ------- Run | Yrd Mat Mat Mat Slots Evolved 4 | . . 2 2 Power . | . . . . Propulsion . | . . . . Utility 2 | . . 1 1 Weapon 2 | . . 1 1 Parts Attached 41 | 6 14 10 11 Power 6 | 1 2 1 2 Engine 5 | 1 1 1 2 Core 1 | . 1 . . Reactor . | . . . . Propulsion 10 | 2 5 . 3 Treads 2 | . . . 2 Leg 4 | . 3 . 1 Wheel 4 | 2 2 . . Hover . | . . . . Flight . | . . . . Utility 12 | 1 3 3 5 Device 5 | . 2 1 2 Storage 2 | 1 1 . . Processor 3 | . . 2 1 Hackware . | . . . . Protection 2 | . . . 2 Artifact . | . . . . Weapon 13 | 2 4 6 1 Energy Gun 6 | . 2 4 . Energy Cannon . | . . . . Ballistic Gun 4 | 2 2 . . Ballistic Cannon 1 | . . 1 . Launcher 1 | . . 1 . Special Weapon . | . . . . Impact Weapon 1 | . . . 1 Slashing Weapon . | . . . . Piercing Weapon . | . . . . Special Melee Weapon . | . . . . Unidentified Prototypes . | . . . . Parts Lost 28 | . 8 5 15 Power 5 | . 2 1 2 Propulsion 7 | . 3 1 3 Utility 6 | . . 1 5 Weapon 10 | . 3 2 5 Highest Loss Streak 10 | . 5 3 10 To Critical Strikes . | . . . . Average Backups 6 | 2 5 6 7 Power 1 | . 1 1 1 Propulsion 1 | 1 2 . . Utility 1 | . 1 2 3 Weapon 1 | . 1 2 1 Tool/Special . | . . . . Unused Backups 8 | . 2 1 5 Power 1 | . . 1 . Propulsion 2 | . 2 . . Utility 4 | . . . 4 Weapon . | . . . . Tool/Special 1 | . . . 1 Average Slot Usage (%) 94 | . 96 95 90 Engine 9 | . 12 9 7 Leg 17 | . 14 21 15 Wheel 4 | . 13 . . Device 13 | . 12 12 16 Storage 11 | . 14 11 7 Processor 5 | . . 9 6 Energy Gun 18 | . 4 21 31 Ballistic Gun 7 | . 22 1 . Ballistic Cannon 3 | . . 7 . Peak Build Rating 19 | 6 9 15 19 Average Rating 11 | 4 6 11 16 On Entrance 7 | . 6 7 15 Naked Turns . | . . . . Heaviest Build 33 | 10 17 27 33 Greatest Support 26 | 20 26 20 20 Greatest Overweight (x) 3 | . 3 2 1 Average Overweight (x) . | . . . . Largest Inventory Capacity 10 | 8 10 10 10 Average Capacity 9 | 6 8 10 9 Most Carried 10 | 6 8 9 10 Average Carried 6 | 2 5 6 7 Final Capacity 10 | 8 10 10 5 Final Carried 8 | 6 6 8 3 Class Distribution -------------------- 44% | Mutant 27% | Gunner 27% | Scavenger-Gunner Dominant Class ---------------- Mutant | -10/Materials Gunner | -9/Materials Scavenger-Gunner | -8/Materials Resources | -11 -10 -9 -8 ----------- Run | Yrd Mat Mat Mat Matter Collected 789 | 190 318 213 68 Remotely . | . . . . Salvage Created 1091 | . 424 504 163 Parts 76 | . 36 23 17 Haulers Intercepted . | . . . . Recyclers Shooed 1 | . . . 1 Parts Field Recycled . | . . . . Retrieved Matter . | . . . . Parts Self-Destructed . | . . . . Prevented . | . . . . Kills | -11 -10 -9 -8 ------- Run | Yrd Mat Mat Mat Combat Hostiles Destroyed 35 | . 14 15 6 Guns 31 | . 14 11 6 Cannons 4 | . . 4 . Classes Destroyed 7 | . 3 3 1 Recycler 1 | . . 1 . Operator 2 | . . . 2 Watcher 3 | . 1 2 . Swarmer 12 | . 6 3 3 Grunt 16 | . 8 7 1 Brawler 1 | . . 1 . Sentry 6 | . . 4 2 Best Kill Streak 6 | . 6 4 3 Combat Bots Only 6 | . 6 3 3 Max Kills in Single Turn 2 | . 2 2 1 Gunslinging . | . . . . Exploded . | . . . . Melee . | . . . . Uniques/NPCs Destroyed . | . . . . Combat | -11 -10 -9 -8 -------- Run | Yrd Mat Mat Mat Hostile Shots Fired 395 | . 127 64 204 Missed 118 | . 43 21 54 Hits 277 | . 84 43 150 Melee 7 | . . . 7 Projectile 270 | . 84 43 143 Critical Strikes 11 | . 2 1 8 Damage Taken 3644 | . 823 506 2315 Core 896 | . 183 155 558 Absorbed by Shields . | . . . . Core Remaining (%) 62 | 100 26 61 . Volleys Fired 124 | . 68 37 19 Largest 4 | . 2 3 4 Hottest 242 | . 60 177 242 Shots Fired 284 | . 130 91 63 Gun 258 | . 130 66 62 Cannon 24 | . . 24 . Launcher 2 | . . 1 1 Special . | . . . . Kinetic 142 | . 113 29 . Thermal 114 | . . 52 62 Explosive 2 | . . 1 1 Electromagnetic 26 | . 17 9 . Robot Hit Streak 18 | . 10 18 10 Robot Miss Streak 13 | . 3 9 13 Penetration Max . | . . . . Secondary Targets 1 | . . . 1 Max Gunslinging Chain 1 | . . . 1 Shots Hit Robots 191 | . 85 60 46 Core Hits 126 | . 33 60 33 Critical Kills . | . . . . Critical Parts Destroyed . | . . . . Critical Strikes 4 | . 1 1 2 Burn 1 | . . . 1 Corrupt 2 | . 1 1 . Smash 1 | . . . 1 Melee Attacks 9 | . . . 9 Impact 9 | . . . 9 Slashing . | . . . . Piercing . | . . . . Sneak Attacks . | . . . . Combat Hostiles . | . . . . Follow-up Attacks . | . . . . Damage Inflicted 2535 | . 750 967 818 Guns 2006 | . 750 645 611 Cannons 299 | . . 299 . Explosions 99 | . . 20 79 Melee 114 | . . . 114 Ramming 17 | . . 3 14 Kinetic 936 | . 599 337 . Thermal 1156 | . . 545 611 Explosive 99 | . . 20 79 Electromagnetic 213 | . 151 62 . Impact 114 | . . . 114 Slashing . | . . . . Piercing . | . . . . Highest Corruption . | . . . . Average Corruption . | . . . . Corruption Purged . | . . . . Corruption Blocked . | . . . . Overload Shots . | . . . . Overflow Damage 4 | . . 4 . Projectiles 4 | . . 4 . Explosions . | . . . . Melee . | . . . . Knockbacks 6 | . . 6 . Impact . | . . . . Kinetic 5 | . . 5 . Secondary 1 | . . 1 . Self-Inflicted Damage 29 | . . . 29 Shots 1 | . . . 1 Rammed 3 | . . . 3 Targets Rammed 4 | . . 1 3 Kicked 1 | . . 1 . Crushed . | . . . . Highest Temperature 306 | . 6 211 306 Average Temperature 73 | . 6 64 103 Received Heat Transfer 1047 | . 255 180 612 Effects 1 | . . . 1 Interference 1 | . . . 1 Siege Activations . | . . . . Martial Activations . | . . . . Shielding Activations . | . . . . Robots Disrupted . | . . . . Combat Hostiles . | . . . . Robots Corrupted . | . . . . Combat Hostiles . | . . . . Parts Fried . | . . . . Impact Corruptions . | . . . . Robots Melted . | . . . . Combat Hostiles . | . . . . Parts Melted 1 | . . . 1 Heat Transferred 1879 | . . 687 1192 Parts Sabotaged . | . . . . Parts Stolen . | . . . . Parts Stripped . | . . . . Power Chain Reactions . | . . . . Alert | -11 -10 -9 -8 ------- Run | Yrd Mat Mat Mat Maximum Alert Level . | . . . . Low Security (%) 100 | 100 100 100 100 Level 1 . | . . . . Level 2 . | . . . . Level 3 . | . . . . Level 4 . | . . . . Level 5 . | . . . . High Security . | . . . . Max Security . | . . . . Peak Influence 170 | . 170 89 71 Initial 20 | . . 20 5 Average 43 | . 77 37 15 Influence Increases 1109 | . 452 412 245 Destroy 0b10 Robot/C 700 | . 280 300 120 Destroy 0b10 Robot/NC 30 | . 5 15 10 Destroy Leader 156 | . 62 64 30 Successful Hack 34 | . . 21 13 Destroy Structure 24 | . . 12 12 Lose Combat Pursuer 165 | . 105 . 60 Influence Decreases 1109 | . 402 447 260 Entered New Map 40 | . . 30 10 Time Decay 857 | . 322 387 148 Lost Part 192 | . 80 30 82 Purge Threat 20 | . . . 20 Squads Dispatched 7 | . 3 . 4 Investigation 1 | . 1 . . Extermination . | . . . . Reinforcement 5 | . 2 . 3 Assault . | . . . . Garrison 1 | . . . 1 Intercept . | . . . . Searches Triggered . | . . . . Construction Impeded . | . . . . Haulers Reinforced . | . . . . Active Scanning Responses . | . . . . Cargo Convoy Interrupts . | . . . . Stealth | -11 -10 -9 -8 --------- Run | Yrd Mat Mat Mat Distress Signals 7 | . 2 4 1 Communications Jammed . | . . . . Distress Signals . | . . . . Times Spotted 82 | . 28 28 26 Peak Tracking Total 10 | . 8 7 10 Tactical Retreats 6 | . 4 . 2 Traps | -11 -10 -9 -8 ------- Run | Yrd Mat Mat Mat Traps Triggered 5 | . 5 . . Indirectly . | . . . . Trap Hack Attempts . | . . . . Triggered . | . . . . Disarmed . | . . . . Reprogrammed . | . . . . Reused . | . . . . Traps Extracted . | . . . . Installed . | . . . . Triggered . | . . . . Machines | -11 -10 -9 -8 ---------- Run | Yrd Mat Mat Mat Machines Disabled . | . . . . Max in Single Turn . | . . . . Machines Repaired . | . . . . Machines Dismantled . | . . . . Machines Sabotaged . | . . . . Overloaded Fab Kills . | . . . . Hacking | -11 -10 -9 -8 --------- Run | Yrd Mat Mat Mat Machines Accessed 8 | . 1 4 3 Terminals 8 | . 1 4 3 Fabricators . | . . . . Repair Stations . | . . . . Recycling Units . | . . . . Scanalyzers . | . . . . Garrison Access . | . . . . Total Hacks 16 | . 1 6 9 Successful 12 | . 1 4 7 Failed 4 | . . 2 2 Catastrophic . | . . . . Database Lockouts . | . . . . Manual 10 | . 1 5 4 Terminals 16 | . 1 6 9 Fabricators . | . . . . Repair Stations . | . . . . Recycling Units . | . . . . Scanalyzers . | . . . . Garrison Access . | . . . . Terminal Hacks 4 | . . . 4 Prototype ID Bank 1 | . . . 1 Alert Level 1 | . . . 1 Unreport Threat 1 | . . . 1 Locate Traps 1 | . . . 1 Fabricator Hacks . | . . . . Repair Station Hacks . | . . . . Recycling Unit Hacks . | . . . . Scanalyzer . | . . . . Garrison Access Hacks . | . . . . Unauthorized Hacks 8 | . 1 4 3 Terminals 8 | . 1 4 3 Botnet 8 | . 1 4 3 Fabricators . | . . . . Repair Stations . | . . . . Recycling Units . | . . . . Scanalyzers . | . . . . Garrison Access . | . . . . Data Cores Recovered 1 | . . . 1 Used . | . . . . Hacking Detections 3 | . . 2 1 Full Trace Events . | . . . . Feedback Events . | . . . . Feedback Blocked . | . . . . Robot Schematics Acquired . | . . . . Robots Built . | . . . . Authchips . | . . . . Time . | . . . . Total Robot Build Rating . | . . . . Part Schematics Acquired . | . . . . Parts Built . | . . . . Authchips . | . . . . Time . | . . . . Total Part Build Rating . | . . . . Parts Repaired . | . . . . Time . | . . . . Parts Recycled . | . . . . Recycled Matter . | . . . . Retrieved Matter . | . . . . Retrieved Components . | . . . . Parts Scanalyzed . | . . . . Part Schematics Acquired . | . . . . Parts Damaged . | . . . . Bothacking | -11 -10 -9 -8 ------------ Run | Yrd Mat Mat Mat Used RIF Installer . | . . . . Robots Hacked . | . . . . Non-combat . | . . . . Combat . | . . . . Robot Hacks Applied . | . . . . Relay Couplers Released . | . . . . Fabnet Peak Effective % . | . . . . Robots Rewired . | . . . . Allies Hacked . | . . . . Hacks Repelled . | . . . . Allies | -11 -10 -9 -8 -------- Run | Yrd Mat Mat Mat Total Allies . | . . . . Largest Group . | . . . . Highest-Rated Group . | . . . . Highest-Rated Ally . | . . . . Total Orders . | . . . . Ally Attacks . | . . . . Total Damage . | . . . . Kills . | . . . . Allies Corrupted . | . . . . Allies Melted . | . . . . Intel | -11 -10 -9 -8 ------- Run | Yrd Mat Mat Mat Active Infowar (turns) 141 | . . 141 . Seismic 141 | . . 141 . Robot Analysis Total . | . . . . Derelict Logs Recovered . | . . . . Drone Launches . | . . . . Drone Recoveries . | . . . . Exploration | -11 -10 -9 -8 ------------- Run | Yrd Mat Mat Mat Turns Passed 2415 | 63 765 980 607 Spaces Moved 1282 | 64 450 473 295 Core 67 | 11 1 . 55 Treads 3 | . . . 3 Legs 939 | . 229 473 237 Wheels 273 | 53 220 . . Hover . | . . . . Flight . | . . . . Fastest Speed 50 | 50 80 120 50 Average Speed 137 | 74 102 163 163 Slowest Speed 260 | 80 200 260 190 Overloaded Moves . | . . . . Propulsion Burnouts . | . . . . Robots Hopped . | . . . . Potential Cave-ins . | . . . . Cave-ins Triggered . | . . . . Exploration Rate (%) 34 | 4 70 39 26 Regions Visited 3 Branch Regions . Pre-discovered Areas . | . . . . Known Exits Taken . | . . . . Unknown Exits Taken 3 | 1 1 1 . Scrap Searched . | . . . . Spaces Dug . | . . . . Terrain Destroyed 18 | . . 7 11 Melee . | . . . . Projectile . | . . . . AOE 18 | . . 7 11 Terrain Rammed . | . . . . Walls Destroyed . | . . . . Machines Disabled . | . . . . Actions | -11 -10 -9 -8 --------- Run | Yrd Mat Mat Mat Total 1681 | 75 643 604 359 Wait 174 | . 89 73 12 Move 1279 | 63 449 472 295 Hop . | . . . . Pick Up 30 | 6 13 7 4 Fast Attach 21 | 6 7 4 4 Attach 20 | . 11 3 6 Detach . | . . . . Swap 11 | . 2 5 4 Drop 9 | . 4 2 3 Fire 124 | . 68 37 19 Melee 9 | . . . 9 Ram 3 | . . . 3 Kick 1 | . . 1 . Crush . | . . . . Escape Stasis . | . . . . Rewire . | . . . . Trap . | . . . . Miscellaneous . | . . . . Route ------- -11/Scrapyard -10/Materials (discovered 3 exits: *Mat / [*Min x2]) -9/Materials -8/Materials History --------- Turn | Location | Event 16 | -11/Scrapyard | Discovered new exit (range 15) 64 | -11/Scrapyard | Entered Materials 337 | -10/Materials | Core integrity fell below 50% 347 | -10/Materials | Lost 5 parts (1p2n2w) 367 | -10/Materials | Build established: Mutant 421 | -10/Materials | Discovered new exit (range 9) 512 | -10/Materials | Discovered new exit (range 15) 819 | -10/Materials | Discovered new exit (range 8) 829 | -10/Materials | Entered another Materials area 829 | -9/Materials | Evolved 2 slots: Utility x1, Weapon x1 1001 | -9/Materials | Lost 3 parts (1n1u1w) 1297 | -9/Materials | Build established: Gunner 1346 | -9/Materials | Discovered new exit (range 9) 1809 | -9/Materials | Entered another Materials area 1809 | -8/Materials | Evolved 2 slots: Utility x1, Weapon x1 1964 | -8/Materials | Build established: Scavenger-Gunner 2346 | -8/Materials | Core integrity fell below 50% 2390 | -8/Materials | Lost 10 parts (1p2n2u5w) 2392 | -8/Materials | Garrison activated, responded to threat 2396 | -8/Materials | Core integrity fell below 20% 2416 | -8/Materials | Destroyed by X-62 Marksman with Pulse Rifle Last Messages --------------- 02383_ Acquired Hrd. Light Armor Plating. 02389_ Acquired Arm. Treads. 02392_ B-36 Bruiser calls for garrison reinforcements. 02392_ ALERT: Activating Garrison Access M001. 02393_ S-10 Pest emerges from the garrison. 02393_ Critical hit (Burn: +37). 02399_ Penetrated by Slug. 02409_ B-36 Bruiser suffers critical hit (Smash). 02410_ Slug penetrates Neutrino Reactor. 02410_ Hrd. Light Armor Plating destroyed. 02410_ Penetrated by Slug. 02412_ Arm. Treads destroyed. 02413_ Penetrated by Slug. 02413_ Slug penetrates Y-45 Defender. 02413_ Hrd. Light Armor Plating destroyed. 02414_ Ion Engine destroyed. 02415_ Critical hit (Burn: +37). 02416_ Slug penetrates B-36 Bruiser. Map ----- +----------------------------------------------------+ | ?????????????????????????????????????????????????? | | ?????????????????????????????????????????????????? | | ?????????????????????????????????????????????????? | | ?????????????????????????????????????????????????? | | ?????????????????????????????????????????????????? | | ?????????????????????????????????????????????????? | | ?????????????????????????????????????????????????? | | ?????????????????????????????????????????????????? | | ?????????????????????????????????????????????????? | | ?????????????????????????????????????????????????? | | ?????????????????????????????????????????????????? | | ?????????????????????????????????????????????????? | | ?????????????????????????????????????????????????? | | ????????????????????????????????????????????#+##+? | | ????????????????????????????????????????????# ? | | ?????????????"??????????????????????????#?#?# ? | | ?????????????? ??###+######+##??????????? + ? | | ????????????###+## ! #???????# ?""" # #? | | ????????????? #???????# """ # #? | | ?????????????? """ #???????# """ # ## | | ???????????????? """ +???????? # | | ?????????????????# """ #?????????? ! | | ?????????????????# !! #???????????? # | | ?????????????????# !Ygg ####??????????# | | ?????????????????# s"""#?????????##! % | | ?????????????????# b@ s G"#?????????# ! | | ?????????????????# s"""#?????????# % !% | | ?????????????????# ####?????????## !!# | | ?????????????##### #?????????????# !" | | ??????????? #?????????????# "##" | | ??????????? #?????????????# ##?# | | ?????????? """ """ #?????????????# #### | | ?????????# "R" """"" x#??????######## # | | ?????????# " " """"" #??????# # # | | ?????????# """"" x/^?????# """ # # | | ?????????# """ #??????# """ # # | | ?????????# #??????# """ # # | | ?????????# ######## """ # # | | ?????????# """ # """ # # | | ???????### % """"" # # # | | ???????#"" $ """"" t # """ # # | | ???????#"Y """"" # """ " #### | | ???????#"" """ # """%+ | | ?????????# == !! #! """ # | | ????###### == !! # """ ## | | ###?# == ! # ## % | | ! # ######### | | # % % | | "" + ###+######+########################## | | "" # # # T #?????????????????# | +----------------------------------------------------+ Best States ------------- Heat Dissipation 51 Energy Generation 14 Energy Capacity 275 Matter Stores 300 Matter Capacity 300 Sight Range 16 Terrain Scan Density 10 Armor Coverage 300 Evasion (%) 55 Targeting Accuracy 6 Recoil Reduction 2 Item Schematics ----------------- None Robot Schematics ------------------ None Fabricated ------------ Nothing Repaired ---------- Nothing Alien Tech Used ----------------- None Achievements -------------- None Challenges ------------ None Game ------ Seed TransmissionActuatorRigger Manual? 0 Play Time 00:25:48 Cumulative 146.5 hours Start 2025.06.14 @ 13:27:46 End 2025.06.22 @ 00:22:37 Sessions 3 Manual Loads 0 Difficulty Rogue Special Mode None Game No. 229 Rogue 229 Adventurer 0 Explorer 0 Win Type - Total 1 Types 1/0/0/0/0/0/0/0/0/0 Lore% 19 Gallery% 43 Achievement% 44 Wizard Run 0 Options --------- Layout 2 ASCII 0 Keyboard 0 Movement Mouse Keybinds 0 Fullscreen 1 Font 24/Smallcaps Map View 50x44 Zoom Use 0% Tactical HUD 1 Map Filters NONE Filters NONE Steam 1 RUN: 1ce2f948-c116-4678-b39d-dd605305d52c